Cogmind - Beta 15 *** ADVENTURER MODE // 2025.09.21 @ 16:36:25 Player: Kayla Solace Result: Self-destructed Performance ------------- Evolutions (1) 500 Regions Visited (2) 400 Robots Destroyed (14) 70 Value Destroyed (207) 207 Prototype IDs (0) 0 Alien Tech Used (0) 0 Bonus (0) 0 TOTAL SCORE: 1177 Bonus ------- None Cogmind --------- Core Integrity 396/400 Matter 181/300 Energy 125/125 System Corruption 0% Temperature Cool (5) Movement Flying (34) Location -9/Materials Parts ------- > --- POWER (1) -------- Light Ion Engine > --- PROPULSION (4) --- Flight Unit Flight Unit Flight Unit > --- UTILITY (2) ------ (None) > --- WEAPON (2) ------- Missile Launcher > --- INVENTORY (5) ---- (None) Peak State ------------ > --- POWER ------------ Light Ion Engine > --- PROPULSION ------- Flight Unit Flight Unit Flight Unit > --- UTILITY ---------- (None) > --- WEAPON ----------- Missile Launcher Missile Launcher > --- INVENTORY -------- (None) [Rating: 10] Favorites ----------- Power Light Ion Engine Engine Light Ion Engine Propulsion Flight Unit Wheel Wheel Flight Unit Flight Unit Utility Small Storage Unit Storage Small Storage Unit Weapon Light Assault Rifle Energy Gun EM Pulse Gun Energy Cannon Beam Cannon Ballistic Gun Light Assault Rifle Launcher Missile Launcher Build | -11 -10 -9 ------- Run | Yrd Mat Mat Slots Evolved 2 | . . 2 Power . | . . . Propulsion 2 | . . 2 Utility . | . . . Weapon . | . . . Parts Attached 14 | 7 4 3 Power 1 | 1 . . Engine 1 | 1 . . Core . | . . . Reactor . | . . . Propulsion 5 | 2 2 1 Treads . | . . . Leg . | . . . Wheel 2 | 2 . . Hover . | . . . Flight 3 | . 2 1 Utility 1 | 1 . . Device . | . . . Storage 1 | 1 . . Processor . | . . . Hackware . | . . . Protection . | . . . Artifact . | . . . Weapon 7 | 3 2 2 Energy Gun 1 | 1 . . Energy Cannon 1 | . 1 . Ballistic Gun 3 | 2 1 . Ballistic Cannon . | . . . Launcher 2 | . . 2 Special Weapon . | . . . Impact Weapon . | . . . Slashing Weapon . | . . . Piercing Weapon . | . . . Special Melee Weapon . | . . . Unidentified Prototypes . | . . . Parts Lost 1 | . . 1 Power . | . . . Propulsion . | . . . Utility . | . . . Weapon 1 | . . 1 Highest Loss Streak 1 | . . 1 To Critical Strikes . | . . . Average Backups . | . 1 . Power . | . . . Propulsion . | . . . Utility . | . . . Weapon . | . 1 . Tool/Special . | . . . Unused Backups . | . . . Power . | . . . Propulsion . | . . . Utility . | . . . Weapon . | . . . Tool/Special . | . . . Average Slot Usage (%) 70 | . 78 56 Engine 12 | . 14 11 Wheel 11 | . 17 . Flight 15 | . 10 24 Storage 5 | . 8 . Energy Gun 5 | . 8 . Energy Cannon 3 | . 5 . Ballistic Gun 9 | . 11 4 Launcher 5 | . . 16 Peak Build Rating 10 | 6 6 10 Average Rating 6 | 4 5 8 On Entrance 3 | . 6 5 Naked Turns . | . . . Heaviest Build 15 | 12 13 15 Greatest Support 26 | 26 26 12 Greatest Overweight (x) 1 | . . 1 Average Overweight (x) . | . . . Largest Inventory Capacity 8 | 8 8 5 Average Capacity 6 | 6 6 5 Most Carried 4 | 2 4 2 Average Carried . | . 1 . Final Capacity 8 | 8 5 5 Final Carried 1 | 1 . . Class Distribution -------------------- 100% | Mutant Dominant Class ---------------- Mutant | -10/Materials Mutant | -9/Materials Resources | -11 -10 -9 ----------- Run | Yrd Mat Mat Matter Collected 346 | 189 147 10 Remotely . | . . . Salvage Created 220 | . 159 61 Parts 26 | . 4 22 Haulers Intercepted . | . . . Recyclers Shooed 1 | . 1 . Parts Field Recycled . | . . . Retrieved Matter . | . . . Parts Self-Destructed . | . . . Prevented . | . . . Kills | -11 -10 -9 ------- Run | Yrd Mat Mat Combat Hostiles Destroyed 9 | . 3 6 Guns 3 | . 3 . AOE 6 | . . 6 Classes Destroyed 6 | . 2 4 Builder 2 | . . 2 Tunneler 1 | . . 1 Recycler 1 | . 1 . Operator 1 | . . 1 Swarmer 7 | . 3 4 Grunt 2 | . . 2 Best Kill Streak 10 | . 2 10 Combat Bots Only 6 | . 2 6 Max Kills in Single Turn 6 | . 1 6 Gunslinging . | . . . Exploded 4 | . . 4 Melee . | . . . Uniques/NPCs Destroyed . | . . . Combat | -11 -10 -9 -------- Run | Yrd Mat Mat Hostile Shots Fired 26 | . 15 11 Missed 13 | . 8 5 Hits 13 | . 7 6 Projectile 13 | . 7 6 Damage Taken 197 | . 53 144 Core 25 | . 21 4 Absorbed by Shields . | . . . Ignored by Resistances 58 | . 16 42 Core Remaining (%) 95 | 100 91 . Volleys Fired 14 | . 10 4 Largest 2 | . 2 2 Hottest 100 | . 100 72 Shots Fired 28 | . 20 8 Gun 13 | . 13 . Cannon 7 | . 7 . Launcher 8 | . . 8 Special . | . . . Kinetic 6 | . 6 . Thermal 7 | . 7 . Explosive 8 | . . 8 Electromagnetic 7 | . 7 . Robot Hit Streak 4 | . 4 4 Robot Miss Streak 3 | . 3 1 Penetration Max . | . . . Secondary Targets . | . . . Shots Hit Robots 16 | . 12 4 Core Hits 17 | . 5 12 Critical Kills . | . . . Critical Parts Destroyed . | . . . Critical Strikes . | . . . Melee Attacks . | . . . Impact . | . . . Slashing . | . . . Piercing . | . . . Sneak Attacks . | . . . Combat Hostiles . | . . . Follow-up Attacks . | . . . Damage Inflicted 966 | . 168 798 Guns 86 | . 86 . Cannons 54 | . 54 . Explosions 826 | . 28 798 Melee . | . . . Ramming . | . . . Kinetic 16 | . 16 . Thermal 82 | . 82 . Explosive 798 | . . 798 Electromagnetic 70 | . 70 . Impact . | . . . Slashing . | . . . Piercing . | . . . Highest Corruption . | . . . Average Corruption . | . . . Corruption Purged . | . . . Corruption Blocked . | . . . Overload Shots . | . . . Overflow Damage 35 | . . 35 Projectiles . | . . . Explosions 35 | . . 35 Melee . | . . . Knockbacks . | . . . Impact . | . . . Kinetic . | . . . Secondary . | . . . Self-Inflicted Damage 111 | . . 111 Shots 5 | . . 5 Rammed . | . . . Targets Rammed . | . . . Kicked . | . . . Crushed . | . . . Highest Temperature 137 | . 137 36 Average Temperature 43 | . 54 15 Received Heat Transfer 12 | . 12 . Siege Activations . | . . . Martial Activations . | . . . Shielding Activations . | . . . Robots Disrupted . | . . . Combat Hostiles . | . . . Robots Corrupted . | . . . Combat Hostiles . | . . . Parts Fried . | . . . Impact Corruptions . | . . . Robots Melted . | . . . Combat Hostiles . | . . . Parts Melted . | . . . Heat Transferred 161 | . 161 . Parts Sabotaged . | . . . Parts Stolen . | . . . Parts Stripped . | . . . Power Chain Reactions 1 | . 1 . Alert | -11 -10 -9 ------- Run | Yrd Mat Mat Maximum Alert Level . | . . . Low Security (%) 100 | 100 100 100 Level 1 . | . . . Level 2 . | . . . Level 3 . | . . . Level 4 . | . . . Level 5 . | . . . High Security . | . . . Max Security . | . . . Peak Influence 194 | . 68 194 Initial 9 | . . 9 Average 34 | . 37 48 Influence Increases 322 | . 98 224 Destroy 0b10 Robot/C 180 | . 60 120 Destroy 0b10 Robot/NC 25 | . 5 20 Destroy Leader 20 | . 10 10 Disable Machine 27 | . . 27 Destroy Structure 55 | . 8 47 Lose Combat Pursuer 15 | . 15 . Influence Decreases 128 | . 70 58 Entered New Map 19 | . . 19 Time Decay 99 | . 70 29 Lost Part 10 | . . 10 Squads Dispatched . | . . . Investigation . | . . . Extermination . | . . . Reinforcement . | . . . Assault . | . . . Garrison . | . . . Intercept . | . . . Searches Triggered . | . . . Construction Impeded . | . . . Haulers Reinforced . | . . . Active Scanning Responses . | . . . Cargo Convoy Interrupts . | . . . Stealth | -11 -10 -9 --------- Run | Yrd Mat Mat Distress Signals 1 | . 1 . Communications Jammed . | . . . Distress Signals . | . . . Times Spotted 15 | . 7 8 Peak Tracking Total 5 | . 3 5 Tactical Retreats 1 | . 1 . Traps | -11 -10 -9 ------- Run | Yrd Mat Mat Traps Triggered . | . . . Indirectly . | . . . Trap Hack Attempts . | . . . Triggered . | . . . Disarmed . | . . . Reprogrammed . | . . . Reused . | . . . Traps Extracted . | . . . Installed . | . . . Triggered . | . . . Machines | -11 -10 -9 ---------- Run | Yrd Mat Mat Machines Disabled 3 | . . 3 Max in Single Turn 2 | . . 2 Machines Repaired . | . . . Machines Dismantled . | . . . Machines Sabotaged . | . . . Overloaded Fab Kills . | . . . Hacking | -11 -10 -9 --------- Run | Yrd Mat Mat Machines Accessed . | . . . Terminals . | . . . Fabricators . | . . . Repair Stations . | . . . Recycling Units . | . . . Scanalyzers . | . . . Garrison Access . | . . . Total Hacks . | . . . Successful . | . . . Failed . | . . . Catastrophic . | . . . Database Lockouts . | . . . Manual . | . . . Terminals . | . . . Fabricators . | . . . Repair Stations . | . . . Recycling Units . | . . . Scanalyzers . | . . . Garrison Access . | . . . Terminal Hacks . | . . . Fabricator Hacks . | . . . Repair Station Hacks . | . . . Recycling Unit Hacks . | . . . Scanalyzer . | . . . Garrison Access Hacks . | . . . Unauthorized Hacks . | . . . Terminals . | . . . Fabricators . | . . . Repair Stations . | . . . Recycling Units . | . . . Scanalyzers . | . . . Garrison Access . | . . . Data Cores Recovered . | . . . Used . | . . . Hacking Detections . | . . . Full Trace Events . | . . . Feedback Events . | . . . Feedback Blocked . | . . . Robot Schematics Acquired . | . . . Robots Built . | . . . Authchips . | . . . Time . | . . . Total Robot Build Rating . | . . . Part Schematics Acquired . | . . . Parts Built . | . . . Authchips . | . . . Time . | . . . Total Part Build Rating . | . . . Parts Repaired . | . . . Time . | . . . Parts Recycled . | . . . Recycled Matter . | . . . Retrieved Matter . | . . . Retrieved Components . | . . . Parts Scanalyzed . | . . . Part Schematics Acquired . | . . . Parts Damaged . | . . . Bothacking | -11 -10 -9 ------------ Run | Yrd Mat Mat Used RIF Installer . | . . . Robots Hacked . | . . . Non-combat . | . . . Combat . | . . . Robot Hacks Applied . | . . . Relay Couplers Released . | . . . Fabnet Peak Effective % . | . . . Robots Rewired . | . . . Allies Hacked . | . . . Hacks Repelled . | . . . Allies | -11 -10 -9 -------- Run | Yrd Mat Mat Total Allies . | . . . Largest Group . | . . . Highest-Rated Group . | . . . Highest-Rated Ally . | . . . Total Orders . | . . . Ally Attacks . | . . . Total Damage . | . . . Kills . | . . . Allies Corrupted . | . . . Allies Melted . | . . . Intel | -11 -10 -9 ------- Run | Yrd Mat Mat Active Infowar (turns) . | . . . Robot Analysis Total . | . . . Derelict Logs Recovered . | . . . Drone Launches . | . . . Drone Recoveries . | . . . Exploration | -11 -10 -9 ------------- Run | Yrd Mat Mat Turns Passed 323 | 55 181 87 Spaces Moved 348 | 48 230 70 Core 4 | 4 . . Treads . | . . . Legs . | . . . Wheels 118 | 44 74 . Hover . | . . . Flight 226 | . 156 70 Fastest Speed 34 | 50 37 34 Average Speed 66 | 86 54 93 Slowest Speed 117 | 90 90 117 Overloaded Moves . | . . . Propulsion Burnouts . | . . . Robots Hopped . | . . . Potential Cave-ins . | . . . Cave-ins Triggered . | . . . Exploration Rate (%) 16 | 4 32 13 Regions Visited 2 Branch Regions . Pre-discovered Areas . | . . . Known Exits Taken . | . . . Unknown Exits Taken 2 | 1 1 . Scrap Searched . | . . . Spaces Dug . | . . . Terrain Destroyed 58 | . 6 52 Melee . | . . . Projectile . | . . . AOE 58 | . 6 52 Terrain Rammed . | . . . Walls Destroyed . | . . . Machines Disabled . | . . . Actions | -11 -10 -9 --------- Run | Yrd Mat Mat Total 415 | 61 272 82 Wait 10 | . 10 . Move 346 | 47 229 70 Hop . | . . . Pick Up 17 | 7 7 3 Fast Attach . | . . . Attach 15 | 6 6 3 Detach 1 | . 1 . Swap 1 | 1 . . Drop 11 | . 9 2 Fire 14 | . 10 4 Melee . | . . . Ram . | . . . Kick . | . . . Crush . | . . . Escape Stasis . | . . . Rewire . | . . . Trap . | . . . Miscellaneous . | . . . Route ------- -11/Scrapyard -10/Materials -9/Materials History --------- Turn | Location | Event 25 | -11/Scrapyard | Discovered new exit (range 14) 56 | -11/Scrapyard | Entered Materials 233 | -10/Materials | Discovered new exit (range 12) 237 | -10/Materials | Entered another Materials area 237 | -9/Materials | Evolved 2 slots: Propulsion x2 324 | -9/Materials | Self-destructed Last Messages --------------- S-10 Pest destroyed. U-05 Engineer destroyed. The unstable cave ceiling collapses. Acquired 10 matter. Acquired Flight Unit. Terminal disabled. U-05 Engineer lays Concrete. G-34 Mercenary destroyed. U-05 Engineer lays Concrete. K-01 Serf collects debris. The unstable cave ceiling collapses. U-05 Engineer lays Concrete. B-36 Bruiser destroyed. G-34 Mercenary destroyed. Missile Launcher destroyed. Destroyed Missile Launcher. U-05 Engineer lays Concrete. K-01 Serf collects debris. The unstable cave ceiling collapses. U-05 Engineer lays Concrete. Map ----- +----------------------------------------------------+ | ?????# ???# # #??# #??## ##???????? | | ??????????#"" + #??# #### #???????? | | ??????????#"T # #??# #???????? | | ??????????#"" # #??# " #???????? | | ??????????+ # #??# #???????? | | ??????????######## #??# # #???????? | | ?????????????????# #??# [ #######???????? | | ?????????????????# #??#!!!![ #?????????????? | | ?????????????????# #??#!!!!]]#?????????????? | | ????????????###### #??########?????????????? | | ????????????+ #???????????????????????? | | ????????????###### #???????????????????????? | | ???????????????####+######???????????????????? | | ???????????????# ##??????????????????? | | ???????????????# "" u #??????????????????? | | ???????????????# " *= #??????????????????? | | ???????????????# """ ! ###????????????????? | | ???????????????# | ###??????????????? | | ???????????????# *= # #??????????????? | | ???????????????#! [! #??????????????? | | ???????????????# #??????????????? | | ???????????????###### #??????????????? | | ???????????????????# #??????????????? | | ?????????????####### #??????????????? | | ???????????# #??????????????? | | ???????????# @ #??????????????? | | ???????????# #??????????????? | | ???????????# = ###??????????????? | | ???????????# [ / ???????????????? | | ???????????# *!= ??????????????? | | ???????????# *%####?????????????? | | ???????????# k # ##????????????????? | | ???????????# ## # #?????????????????? | | ???????????#########?# ##?????????????????? | | ?????????????????????######??????????????????? | | ?????????????????????????????????????????????? | | ?????????????????????????????????????????????? | | ?????????????????????????????????????????????? | | ?????????????????????????????????????????????? | | ?????????????????????????????????????????????? | | ?????????????????????????????????????????????? | | ?????????????????????????????????????????????? | | ?????????????????????????????????????????????? | | ?????????????????????????????????????????????? | | ?????????????????????????????????????????????? | | ?????????????????????????????????????????????? | | ?????????????????????????????????????????????? | | | | | | | +----------------------------------------------------+ Best States ------------- Heat Dissipation 28 Energy Generation 10 Energy Capacity 125 Matter Stores 300 Matter Capacity 300 Sight Range 16 Terrain Scan Density 10 Resistance: KI 20 Resistance: TH 20 Resistance: EX 20 Resistance: EM 20 Resistance: I 20 Resistance: S 20 Resistance: P 20 Evasion (%) 62 Offensive Hacking 10 Item Schematics ----------------- None Robot Schematics ------------------ None Fabricated ------------ Nothing Repaired ---------- Nothing Alien Tech Used ----------------- None Achievements -------------- None Challenges ------------ None Game ------ Seed SingularityWaveDirector Manual? 0 Play Time 00:04:45 Cumulative 11.2 hours Start 2025.09.19 @ 18:54:01 End 2025.09.21 @ 16:36:25 Sessions 2 Manual Loads 0 Difficulty Adventurer Special Mode None Game No. 15 Rogue 0 Adventurer 15 Explorer 0 Win Type - Total 0 Types 0/0/0/0/0/0/0/0/0/0 Lore% 13 Gallery% 17 Achievement% 16 Wizard Run 0 Options --------- Layout 1 ASCII 0 Keyboard 0 Movement Mouse Keybinds 0 Fullscreen 1 Font 32/SmallcapsGlow Map View 50x35 Zoom Use 0% Tactical HUD 0 Map Filters NONE Filters NONE Steam 1 RUN: 17778954-f67a-45de-a800-d32e4c7c491f